[Event "NOR-chT Eliteserien 2021-22"]
[Site "Norway"]
[Date "2022.03.05"]
[Round "8.8"]
[White "Galchenko, Matvey"]
[Black "Romanov, Evgeny"]
[Result "1/2-1/2"]
[ECO "E15"]
[WhiteElo "2443"]
[BlackElo "2561"]
[Annotator "ChessBase"]
[PlyCount "70"]
[EventDate "2021.10.29"]
[EventType "team-tourn"]
[EventCountry "NOR"]
[SourceTitle "playchess.com"]
[Source "ChessBase"]
[SourceQuality "1"]
[TimeControl "40/5400+30:1800+30"]

1. d4 {[%emt 0:00:04]} Nf6 {[%emt 0:01:22]} 2. c4 {[%emt 0:00:15]} e6 {[%emt 0:00:27]} 3. g3 {[%emt 0:00:35]} Bb4+ {[%emt 0:07:41]} 4. Bd2 {[%emt 0:00:13]} a5 {[%emt 0:00:06]} 5. Bg2 {[%emt 0:00:18]} O-O {[%emt 0:02:07]} 6. Nf3 {[%emt 0:01:57]} b6 {[%emt 0:00:10]} 7. Ne5 {[%emt 0:03:39]} Ra7 {[%emt 0:00:26]} 8. O-O {[%emt 0:01:38]} d6 {[%emt 0:03:20]} 9. Nd3 {[%emt 0:02:20]} Bxd2 {[%emt 0:00:40]} 10. Qxd2 {[%emt 0:02:49]} Ba6 {[%emt 0:00:32]} 11. b3 {[%emt 0:04:27]} c5 {[%emt 0:10:25]} 12. Qf4 {[%emt 0:10:42]} cxd4 {[%emt 0:03:21]} 13. Qxd4 {[%emt 0:00:29]} d5 {[%emt 0:00:30]} 14. cxd5 {[%emt 0:01:39]} Nxd5 {[%emt 0:00:38]} 15. Rc1 {[%emt 0:11:22]} Nb4 {[%emt 0:05:40]} 16. Qxd8 {[%emt 0:09:11]} Rxd8 {[%emt 0:00:04]} 17. Nxb4 {[%emt 0:01:07]} axb4 {[%emt 0:00:04]} 18. e3 {[%emt 0:00:48]} Kf8 {[%emt 0:07:00]} 19. a3 {[%emt 0:07:56]} Bd3 {[%emt 0:01:41]} 20. Ra2 {[%emt 0:10:07]} Nd7 {[%emt 0:05:24]} 21. Nd2 {[%emt 0:05:25]} Rxa3 {[%emt 0:11:37]} 22. Rxa3 {[%emt 0:00:20]} bxa3 {[%emt 0:00:02]} 23. Ra1 {[%emt 0:00:11]} Nc5 {[%emt 0:00:11]} 24. b4 {[%emt 0:07:10]} Na6 {[%emt 0:02:01]} 25. Rxa3 {[%emt 0:00:18]} Nxb4 {[%emt 0:00:23]} 26. h4 {[%emt 0:01:46]} b5 {[%emt 0:37:38]} 27. Ra7 {[%emt 0:02:21]} Nc2 {[%emt 0:00:00]} 28. Rb7 {[%emt 0:02:09]} b4 {[%emt 0:00:00]} 29. Nb3 {[%emt 0:01:28]} Be2 {[%emt 0:00:00]} 30. Na5 {[%emt 0:02:04]} f5 {[%emt 0:00:00]} 31. Nc6 {[%emt 0:03:39]} Rd1+ {[%emt 0:00:00]} 32. Kh2 {[%emt 0:00:01]} Rd2 {[%emt 0:00:00]} 33. Kg1 {[%emt 0:00:55]} Rd1+ {[%emt 0:00:53]} 34. Kh2 {[%emt 0:00:00]} Rd2 {[%emt 0:01:43]} 35. Kg1 {[%emt 0:00:08]} Rd1+ {[%emt 0:00:59]} 1/2-1/2

[Event "NOR-chT Eliteserien 2021-22"]
[Site "Norway"]
[Date "2022.03.05"]
[Round "8.10"]
[White "Flermoen, Peter"]
[Black "Holm, Kristian Stuvik"]
[Result "1/2-1/2"]
[ECO "B73"]
[WhiteElo "2297"]
[BlackElo "2464"]
[Annotator "ChessBase"]
[PlyCount "89"]
[EventDate "2021.10.29"]
[EventType "team-tourn"]
[EventCountry "NOR"]
[SourceTitle "playchess.com"]
[Source "ChessBase"]
[SourceQuality "1"]
[TimeControl "40/5400+30:1800+30"]

1. e4 {[%emt 1:31:00]} c5 {[%emt 1:31:00]} 2. Nf3 {[%emt 0:00:30]} d6 {[%emt 0:00:30]} 3. d4 {[%emt 0:00:30]} cxd4 {[%emt 0:00:30]} 4. Nxd4 {[%emt 0:00:30]} Nf6 {[%emt 0:00:30]} 5. Nc3 {[%emt 0:00:30]} Nc6 {[%emt 0:00:30]} 6. Be2 {[%emt 0:00:30]} g6 {[%emt 0:00:30]} 7. O-O {[%emt 0:00:30]} Bg7 {[%emt 0:00:30]} 8. Be3 {[%emt 0:00:30]} O-O {[%emt 0:00:30]} 9. h3 {[%emt 0:00:30]} Bd7 {[%emt 0:00:30]} 10. Qd2 {[%emt 0:00:30]} Rc8 {[%emt 0:00:30]} 11. f4 {[%emt 0:00:30]} Na5 {[%emt 0:00:30]} 12. e5 {[%emt 0:00:30]} Ne8 {[%emt 0:00:30]} 13. Nf3 {[%emt 0:00:30]} Bc6 {[%emt 0:00:30]} 14. Rad1 {[%emt 0:00:30]} Qc7 {[%emt 0:00:30]} 15. Nd4 {[%emt 0:00:30]} dxe5 {[%emt 0:00:30]} 16. Ndb5 {[%emt 0:00:30]} Bxb5 {[%emt 0:00:30]} 17. Nxb5 {[%emt 0:00:30]} Qxc2 {[%emt 0:00:30]} 18. Nxa7 {[%emt 0:00:30]} Qxd2 {[%emt 0:00:30]} 19. Bxd2 {[%emt 0:00:30]} Ra8 {[%emt 0:00:30]} 20. Bxa5 {[%emt 0:00:30]} Rxa7 {[%emt 0:00:30]} 21. Bd8 {[%emt 0:00:30]} b6 {[%emt 0:00:30]} 22. Bxb6 {[%emt 0:00:30]} Rxa2 {[%emt 0:00:30]} 23. Bc5 {[%emt 0:00:30]} Rxb2 {[%emt 0:00:30]} 24. Bf3 {[%emt 0:00:30]} Nd6 {[%emt 0:00:30]} 25. Bxd6 {[%emt 0:00:30]} exd6 {[%emt 0:00:30]} 26. Rxd6 {[%emt 0:00:30]} exf4 {[%emt 0:00:30]} 27. Rd7 {[%emt 0:00:30]} Bc3 {[%emt 0:00:30]} 28. Bd5 {[%emt 0:00:30]} Bd4+ {[%emt 0:00:30]} 29. Kh2 {[%emt 0:00:30]} Bf2 {[%emt 0:00:30]} 30. h4 {[%emt 0:00:30]} Kg7 {[%emt 0:00:30]} 31. Rc1 {[%emt 0:00:30]} Bxh4 {[%emt 0:00:30]} 32. Rcc7 {[%emt 0:00:30]} Bg3+ {[%emt 0:00:30]} 33. Kh3 {[%emt 0:00:30]} Rd2 {[%emt 0:00:30]} 34. Rxf7+ {[%emt 0:00:30]} Rxf7 {[%emt 0:00:30]} 35. Rxf7+ {[%emt 0:00:30]} Kh6 {[%emt 0:00:30]} 36. Bf3 {[%emt 0:00:30]} Rc2 {[%emt 0:00:30]} 37. Rd7 {[%emt 0:00:30]} Rc5 {[%emt 0:00:30]} 38. Rd5 {[%emt 0:00:30]} Rxd5 {[%emt 0:00:30]} 39. Bxd5 {[%emt 0:00:30]} Kg5 {[%emt 0:00:30]} 40. Bg8 {[%emt 0:00:30]} h5 {[%emt 0:00:30]} 41. Bf7 {[%emt 0:30:30]} Bf2 {[%emt 0:30:30]} 42. Be8 {[%emt 0:00:30]} Bg1 {[%emt 0:00:30]} 43. g3 {[%emt 0:00:30]} fxg3 {[%emt 0:00:30]} 44. Bxg6 {[%emt 0:00:30]} Kxg6 {[%emt 0:00:30]} 45. Kxg3 {[%emt 0:00:30]} 1/2-1/2

[Event "NOR-chT Eliteserien 2021-22"]
[Site "Norway"]
[Date "2022.03.05"]
[Round "8.11"]
[White "Kaasen, Tor Fredrik"]
[Black "Nielsen, Andre"]
[Result "1-0"]
[ECO "E05"]
[WhiteElo "2458"]
[BlackElo "2219"]
[Annotator "ChessBase"]
[PlyCount "77"]
[EventDate "2021.10.29"]
[EventType "team-tourn"]
[EventCountry "NOR"]
[SourceTitle "playchess.com"]
[Source "ChessBase"]
[SourceQuality "1"]
[TimeControl "40/5400+30:1800+30"]

1. d4 {[%emt 1:31:00]} Nf6 {[%emt 1:31:00]} 2. c4 {[%emt 0:00:30]} e6 {[%emt 0:00:30]} 3. g3 {[%emt 0:00:30]} Be7 {[%emt 0:00:30]} 4. Bg2 {[%emt 0:00:30]} d5 {[%emt 0:00:30]} 5. Nf3 {[%emt 0:00:30]} O-O {[%emt 0:00:30]} 6. O-O {[%emt 0:00:30]} dxc4 {[%emt 0:00:30]} 7. Qc2 {[%emt 0:00:30]} a6 {[%emt 0:00:30]} 8. a4 {[%emt 0:00:30]} Bd7 {[%emt 0:00:30]} 9. Qxc4 {[%emt 0:00:30]} Bc6 {[%emt 0:00:30]} 10. Bf4 {[%emt 0:00:30]} Nbd7 {[%emt 0:00:30]} 11. Nc3 {[%emt 0:00:30]} Nb6 {[%emt 0:00:30]} 12. Qd3 {[%emt 0:00:30]} Nbd5 {[%emt 0:00:30]} 13. Bg5 {[%emt 0:00:30]} Nxc3 {[%emt 0:00:30]} 14. bxc3 {[%emt 0:00:30]} Be4 {[%emt 0:00:30]} 15. Qe3 {[%emt 0:00:30]} Bd5 {[%emt 0:00:30]} 16. Bxf6 {[%emt 0:00:30]} Bxf6 {[%emt 0:00:30]} 17. Qd3 {[%emt 0:00:30]} Bxf3 {[%emt 0:00:30]} 18. Bxf3 {[%emt 0:00:30]} Rb8 {[%emt 0:00:30]} 19. Rab1 {[%emt 0:00:30]} c6 {[%emt 0:00:30]} 20. e3 {[%emt 0:00:30]} Qa5 {[%emt 0:00:30]} 21. Qc2 {[%emt 0:00:30]} Rfc8 {[%emt 0:00:30]} 22. c4 {[%emt 0:00:30]} g6 {[%emt 0:00:30]} 23. Rfd1 {[%emt 0:00:30]} e5 {[%emt 0:00:30]} 24. Qb3 {[%emt 0:00:30]} exd4 {[%emt 0:00:30]} 25. exd4 {[%emt 0:00:30]} Rd8 {[%emt 0:00:30]} 26. d5 {[%emt 0:00:30]} cxd5 {[%emt 0:00:30]} 27. Bxd5 {[%emt 0:00:30]} Qc5 {[%emt 0:00:30]} 28. h4 {[%emt 0:00:30]} Rd6 {[%emt 0:00:30]} 29. Qd3 {[%emt 0:00:30]} Rb6 {[%emt 0:00:30]} 30. Qf3 {[%emt 0:00:30]} Rd8 {[%emt 0:00:30]} 31. Rxb6 {[%emt 0:00:30]} Qxb6 {[%emt 0:00:30]} 32. a5 {[%emt 0:00:30]} Qb2 {[%emt 0:00:30]} 33. Bxf7+ {[%emt 0:00:30]} Kg7 {[%emt 0:00:30]} 34. Rxd8 {[%emt 0:00:30]} Bxd8 {[%emt 0:00:30]} 35. Bd5 {[%emt 0:00:30]} Bf6 {[%emt 0:00:30]} 36. Kg2 {[%emt 0:00:30]} b6 {[%emt 0:00:30]} 37. Qf4 {[%emt 0:00:30]} bxa5 {[%emt 0:00:30]} 38. Qc7+ {[%emt 0:00:30]} Kh6 {[%emt 0:00:30]} 39. Bg8 {[%emt 0:00:30]} 1-0

[Event "NOR-chT Eliteserien 2021-22"]
[Site "Norway"]
[Date "2022.03.05"]
[Round "8.12"]
[White "Solberg, Joachim"]
[Black "Hobber, Anders"]
[Result "0-1"]
[ECO "C01"]
[WhiteElo "2216"]
[BlackElo "2381"]
[Annotator "NA"]
[PlyCount "74"]
[EventDate "2021.10.29"]
[EventType "team-tourn"]
[EventCountry "NOR"]
[SourceTitle "playchess.com"]
[Source "ChessBase"]
[SourceQuality "1"]
[TimeControl "40/5400+30:1800+30"]

1. e4 {[%emt 0:00:02]} e6 {[%emt 0:00:16]} 2. d4 {[%emt 0:02:02]} d5 {[%emt 0:00:11]} 3. exd5 {[%emt 0:04:39]} exd5 {[%emt 0:02:18]} 4. Nf3 {[%emt 0:00:06]} Nc6 {[%emt 0:00:16]} 5. Bb5 {[%emt 0:00:44]} Nge7 {[%emt 0:00:06]} 6. Ne5 {[%emt 0:01:37]} a6 {[%emt 0:08:33]} 7. Nxc6 {[%emt 0:00:34]} Nxc6 {[%emt 0:05:46]} 8. Bxc6+ {[%emt 0:01:26]} bxc6 {[%emt 0:00:43]} 9. Bf4 {[%emt 0:00:05]} Bd6 {[%emt 0:10:28]} 10. Bxd6 {[%emt 0:00:26]} cxd6 {[%emt 0:01:05]} 11. O-O {[%emt 0:00:04]} O-O {[%emt 0:01:20]} 12. Qd2 $11 {[%emt 0:07:35]} Bf5 {[%emt 0:04:27]} 13. Nc3 {[%emt 0:02:07]} Qf6 {[%emt 0:06:31]} 14. Ne2 {[%emt 0:04:29]} Rab8 {[%emt 0:09:25]} 15. b3 {[%emt 0:01:18]} h5 {[%emt 0:10:47]} 16. Rfe1 {[%emt 0:05:43]} h4 {[%emt 0:04:00]} 17. h3 {[%emt 0:05:28]} Rfe8 {[%emt 0:03:20]} 18. Rad1 {[%emt 0:16:58]} Re7 {[%emt 0:07:35]} 19. Kf1 {[%emt 0:04:49]} Rbe8 {[%emt 0:01:27]} 20. c3 {[%emt 0:11:59]} Be4 {[%emt 0:08:09]} 21. Nc1 {[%emt 0:04:15]} Qf5 {[%emt 0:06:33]} 22. Re2 {[%emt 0:07:02]} Re6 {[%emt 0:02:43]} 23. Rde1 {[%emt 0:04:19]} Kh7 {[%emt 0:00:45]} 24. Re3 {[%emt 0:03:56]} Qg5 {[%emt 0:01:48]} 25. f4 {[%emt 0:08:16]} Qxf4+ {[%emt 0:01:29]} 26. Kg1 {[%emt 0:01:55]} Bg6 {[%emt 0:01:04]} 27. Qf2 {[%emt 0:00:16]} Rxe3 {[%emt 0:01:17]} 28. Qxf4 {[%emt 0:00:04]} Rxe1+ {[%emt 0:00:03]} 29. Kf2 {[%emt 0:01:34]} R1e4 {[%emt 0:00:55]} 30. Qd2 {[%emt 0:00:34]} Bh5 {[%emt 0:01:06]} 31. Qc2 {[%emt 0:00:49]} R8e6 {[%emt 0:00:17]} 32. g4 {[%emt 0:00:34]} hxg3+ {[%emt 0:00:22]} 33. Kxg3 {[%emt 0:00:04]} Bg6 {[%emt 0:00:46]} 34. Qd2 {[%emt 0:00:51]} Re3+ {[%emt 0:00:20]} 35. Kh2 {[%emt 0:00:24]} Bf5 {[%emt 0:00:36]} 36. h4 {[%emt 0:00:45]} Rh3+ {[%emt 0:00:19]} 37. Kg2 {[%emt 0:00:03]} Rg6+ {[%emt 0:00:05]} 0-1

[Event "NOR-chT Eliteserien 2021-22"]
[Site "Norway"]
[Date "2022.03.05"]
[Round "8.13"]
[White "Tallaksen, Levi Andre"]
[Black "Notkevich, Benjamin Arvola"]
[Result "1/2-1/2"]
[ECO "E12"]
[WhiteElo "2321"]
[BlackElo "2481"]
[Annotator "ChessBase"]
[PlyCount "120"]
[EventDate "2021.10.29"]
[EventType "team-tourn"]
[EventCountry "NOR"]
[SourceTitle "playchess.com"]
[Source "ChessBase"]
[SourceQuality "1"]
[TimeControl "40/5400+30:1800+30"]

1. d4 {[%emt 0:00:04]} Nf6 {[%emt 0:01:09]} 2. c4 {[%emt 0:00:11]} e6 {[%emt 0:00:12]} 3. Nf3 {[%emt 0:00:15]} b6 {[%emt 0:00:06]} 4. a3 {[%emt 0:00:21]} Ba6 {[%emt 0:01:55]} 5. Qc2 {[%emt 0:00:21]} c5 {[%emt 0:00:48]} 6. e4 {[%emt 0:01:22]} cxd4 {[%emt 0:06:45]} 7. Nxd4 {[%emt 0:03:53]} Bc5 {[%emt 0:01:16]} 8. Nb3 {[%emt 0:01:22]} Nc6 {[%emt 0:00:11]} 9. Be2 {[%emt 0:02:29]} O-O {[%emt 0:00:25]} 10. O-O {[%emt 0:00:06]} Qc7 {[%emt 0:01:27]} 11. Nxc5 {[%emt 0:12:22]} bxc5 {[%emt 0:00:06]} 12. Be3 {[%emt 0:00:09]} Qe5 {[%emt 0:08:49]} 13. Nd2 {[%emt 0:03:36]} Rab8 {[%emt 0:05:12]} 14. Rab1 {[%emt 0:16:55]} Nd4 {[%emt 0:06:13]} 15. Bxd4 {[%emt 0:00:35]} Qxd4 {[%emt 0:00:39]} 16. b4 {[%emt 0:00:49]} cxb4 {[%emt 0:05:14]} 17. axb4 {[%emt 0:00:39]} Rfc8 {[%emt 0:00:08]} 18. Rfd1 {[%emt 0:06:04]} h6 {[%emt 0:07:13]} 19. Bd3 {[%emt 0:03:01]} Qb6 {[%emt 0:13:24]} 20. Qa4 {[%emt 0:13:04]} Bb7 {[%emt 0:06:10]} 21. e5 {[%emt 0:03:28]} Ng4 {[%emt 0:03:40]} 22. c5 {[%emt 0:00:09]} Qc7 {[%emt 0:01:32]} 23. Nc4 {[%emt 0:00:31]} Nxe5 {[%emt 0:01:51]} 24. Nd6 {[%emt 0:01:11]} Bd5 {[%emt 0:08:37]} 25. Nxc8 {[%emt 0:11:15]} Rxc8 {[%emt 0:00:06]} 26. Be2 {[%emt 0:00:06]} Ng6 {[%emt 0:00:54]} 27. Qa6 {[%emt 0:02:37]} Rb8 {[%emt 0:04:22]} 28. Qd6 {[%emt 0:05:13]} Qxd6 {[%emt 0:00:11]} 29. cxd6 {[%emt 0:00:05]} Nh4 {[%emt 0:00:29]} 30. g4 {[%emt 0:04:50]} Rb6 {[%emt 0:06:39]} 31. b5 {[%emt 0:01:50]} Nf3+ {[%emt 0:06:02]} 32. Bxf3 {[%emt 0:06:05]} Bxf3 {[%emt 0:00:05]} 33. Rdc1 {[%emt 0:01:00]} Rxd6 {[%emt 0:00:05]} 34. Rb3 {[%emt 0:00:53]} Bd5 {[%emt 0:01:25]} 35. Ra3 {[%emt 0:00:16]} Rb6 {[%emt 0:00:48]} 36. Rxa7 {[%emt 0:00:10]} Rxb5 {[%emt 0:00:24]} 37. Rxd7 {[%emt 0:00:06]} g5 {[%emt 0:00:59]} 38. h3 {[%emt 0:00:47]} Kg7 {[%emt 0:00:08]} 39. Rdc7 {[%emt 0:01:06]} Kg6 {[%emt 0:00:25]} 40. R7c5 {[%emt 0:00:24]} Rb4 {[%emt 0:00:13]} 41. R5c3 {[%emt 0:10:57]} h5 {[%emt 0:00:00]} 42. gxh5+ {[%emt 0:02:11]} Kxh5 {[%emt 0:00:00]} 43. Kh2 {[%emt 0:00:15]} f5 {[%emt 0:00:15]} 44. Rc8 {[%emt 0:00:59]} Rb2 {[%emt 0:00:25]} 45. R1c2 {[%emt 0:00:48]} Rb4 {[%emt 0:00:34]} 46. R2c7 {[%emt 0:04:28]} Kg6 {[%emt 0:00:45]} 47. Kg3 {[%emt 0:02:04]} Kf6 {[%emt 0:02:49]} 48. Rc3 {[%emt 0:01:28]} Rb1 {[%emt 0:01:39]} 49. Rc1 {[%emt 0:00:18]} Rb2 {[%emt 0:00:33]} 50. R1c2 {[%emt 0:00:59]} Rb4 {[%emt 0:00:07]} 51. R2c3 {[%emt 0:00:17]} Be4 {[%emt 0:01:02]} 52. R3c4 {[%emt 0:02:56]} Rb2 {[%emt 0:00:14]} 53. h4 {[%emt 0:05:20]} gxh4+ {[%emt 0:04:22]} 54. Kxh4 {[%emt 0:00:10]} Ke5 {[%emt 0:00:27]} 55. Kg3 {[%emt 0:02:49]} f4+ {[%emt 0:00:23]} 56. Kg4 {[%emt 0:00:19]} Rxf2 {[%emt 0:00:22]} 57. R8c5+ {[%emt 0:00:23]} Bd5 {[%emt 0:00:17]} 58. Rc2 {[%emt 0:00:36]} Rf1 {[%emt 0:03:07]} 59. Rc1 {[%emt 0:00:18]} Rf2 {[%emt 0:00:12]} 60. R1c2 {[%emt 0:00:09]} Rf1 {[%emt 0:00:48]} 1/2-1/2

[Event "NOR-chT Eliteserien 2021-22"]
[Site "Norway"]
[Date "2022.03.05"]
[Round "8.14"]
[White "Vestby-Ellingsen, Mads"]
[Black "Shehzad, Shazil"]
[Result "1/2-1/2"]
[ECO "B52"]
[WhiteElo "2368"]
[BlackElo "2182"]
[Annotator "NA"]
[PlyCount "75"]
[EventDate "2021.10.29"]
[EventType "team-tourn"]
[EventCountry "NOR"]
[SourceTitle "playchess.com"]
[Source "ChessBase"]
[SourceQuality "1"]
[TimeControl "40/5400+30:1800+30"]

1. e4 {[%emt 1:31:00]} c5 {[%emt 1:31:00]} 2. Nf3 {[%emt 0:00:30]} d6 {[%emt 0:00:30]} 3. Bb5+ {[%emt 0:00:30]} Bd7 {[%emt 0:00:30]} 4. Bxd7+ {[%emt 0:00:30]} Nxd7 {[%emt 0:00:30]} 5. O-O {[%emt 0:00:30]} Ngf6 {[%emt 0:00:30]} 6. Qe2 {[%emt 0:00:30]} e6 {[%emt 0:00:30]} 7. b3 {[%emt 0:00:30]} Be7 {[%emt 0:00:30]} 8. Bb2 {[%emt 0:00:30]} O-O {[%emt 0:00:30]} 9. c4 {[%emt 0:00:30]} Qa5 {[%emt 0:00:30]} 10. d4 {[%emt 0:00:30]} cxd4 {[%emt 0:00:30]} 11. Nxd4 {[%emt 0:00:30]} Rac8 {[%emt 0:00:30]} 12. Nc3 {[%emt 0:00:30]} a6 {[%emt 0:00:30]} 13. Rac1 {[%emt 0:00:30]} Rfe8 {[%emt 0:00:30]} 14. Rfd1 {[%emt 0:00:30]} Bf8 {[%emt 0:00:30]} 15. h3 {[%emt 0:00:30]} Ne5 {[%emt 0:00:30]} 16. Qd2 {[%emt 0:00:30]} Nc6 {[%emt 0:00:30]} 17. Nxc6 {[%emt 0:00:30]} Rxc6 {[%emt 0:00:30]} 18. Rc2 {[%emt 0:00:30]} Qh5 {[%emt 0:00:30]} 19. Qe2 {[%emt 0:00:30]} Qxe2 {[%emt 0:00:30]} 20. Rxe2 {[%emt 0:00:30]} Rb8 {[%emt 0:00:30]} 21. e5 $11 {[%emt 0:00:30]} dxe5 {[%emt 0:00:30]} 22. Rxe5 {[%emt 0:00:30]} Rd6 {[%emt 0:00:30]} 23. Rxd6 {[%emt 0:00:30]} Bxd6 24. Re1 {[%emt 0:00:30]} Kf8 {[%emt 0:01:00]} 25. Kf1 {[%emt 0:00:30]} b5 {[%emt 0:00:30]} 26. Ne4 {[%emt 0:00:30]} Nxe4 {[%emt 0:00:30]} 27. Rxe4 {[%emt 0:00:30]} Rc8 {[%emt 0:00:30]} 28. cxb5 {[%emt 0:00:30]} axb5 {[%emt 0:00:30]} 29. a4 {[%emt 0:00:30]} bxa4 {[%emt 0:00:30]} 30. bxa4 {[%emt 0:00:30]} Rc2 {[%emt 0:00:30]} 31. Be5 {[%emt 0:00:30]} Bxe5 {[%emt 0:00:30]} 32. Rxe5 {[%emt 0:00:30]} Ra2 {[%emt 0:00:30]} 33. a5 {[%emt 0:00:30]} Ke7 {[%emt 0:00:30]} 34. Rb5 {[%emt 0:00:30]} Kf6 {[%emt 0:00:30]} 35. h4 {[%emt 0:00:30]} Kg6 {[%emt 0:00:30]} 36. Rg5+ {[%emt 0:00:30]} Kf6 {[%emt 0:00:30]} 37. Rb5 {[%emt 0:00:30]} Kg6 {[%emt 0:00:30]} 38. Rg5+ {[%emt 0:00:30]} 1/2-1/2

[Event "NOR-chT Eliteserien 2021-22"]
[Site "Norway"]
[Date "2022.03.05"]
[Round "8.15"]
[White "Kvaloy, Aksel Bu"]
[Black "Lund, Gunnar"]
[Result "1/2-1/2"]
[ECO "C95"]
[WhiteElo "2280"]
[BlackElo "2307"]
[Annotator "NA"]
[PlyCount "187"]
[EventDate "2021.10.29"]
[EventType "team-tourn"]
[EventCountry "NOR"]
[SourceTitle "playchess.com"]
[Source "ChessBase"]
[SourceQuality "1"]
[TimeControl "40/5400+30:1800+30"]

1. e4 {[%emt 0:00:15]} e5 {[%emt 0:00:11]} 2. Nf3 {[%emt 0:00:12]} Nc6 {[%emt 0:00:05]} 3. Bb5 {[%emt 0:00:11]} a6 {[%emt 0:00:06]} 4. Ba4 {[%emt 0:00:10]} Nf6 {[%emt 0:00:10]} 5. O-O {[%emt 0:00:19]} Be7 {[%emt 0:00:26]} 6. Re1 {[%emt 0:00:11]} b5 {[%emt 0:00:18]} 7. Bb3 {[%emt 0:00:20]} d6 {[%emt 0:00:15]} 8. c3 {[%emt 0:01:26]} O-O {[%emt 0:00:30]} 9. h3 {[%emt 0:00:28]} Nb8 {[%emt 0:00:20]} 10. d4 {[%emt 0:01:44]} Nbd7 {[%emt 0:00:22]} 11. Nbd2 {[%emt 0:00:28]} Bb7 {[%emt 0:00:14]} 12. Bc2 {[%emt 0:01:02]} Re8 {[%emt 0:00:10]} 13. Nf1 {[%emt 0:00:53]} Bf8 {[%emt 0:00:19]} 14. Ng3 {[%emt 0:00:33]} g6 {[%emt 0:00:11]} 15. a4 {[%emt 0:02:02]} c5 {[%emt 0:03:03]} 16. d5 {[%emt 0:00:58]} c4 {[%emt 0:00:43]} 17. Bg5 {[%emt 0:01:13]} Be7 {[%emt 0:04:41]} 18. Bh6 {[%emt 0:21:17]} Nc5 {[%emt 0:04:44]} 19. Nh2 {[%emt 0:02:43]} Bf8 {[%emt 0:11:55]} 20. Bg5 {[%emt 0:01:15]} Be7 {[%emt 0:02:09]} 21. Bh6 {[%emt 0:01:26]} Bf8 {[%emt 0:02:35]} 22. Be3 {[%emt 0:00:45]} Qc7 {[%emt 0:16:47]} 23. Qf3 {[%emt 0:08:11]} Bg7 {[%emt 0:03:30]} 24. Bg5 {[%emt 0:06:06]} Nfd7 {[%emt 0:00:47]} 25. Ng4 {[%emt 0:01:52]} f6 {[%emt 0:01:12]} 26. Nh6+ {[%emt 0:01:30]} Kh8 {[%emt 0:01:04]} 27. Nf7+ {[%emt 0:00:20]} Kg8 {[%emt 0:00:05]} 28. Nh6+ $11 {[%emt 0:00:07]} Kh8 {[%emt 0:01:25]} {White should play} 29. Be3 $14 {[%emt 0:11:37]} Rf8 {[%emt 0:04:40]} 30. Qd1 {[%emt 0:13:21]} Nb6 {[%emt 0:06:08]} 31. a5 {[%emt 0:03:46]} Nc8 {[%emt 0:00:58]} 32. Ng4 {[%emt 0:08:59]} Ne7 {[%emt 0:02:42]} 33. f4 {[%emt 0:02:04]} f5 {[%emt 0:14:11]} 34. Nxe5 {[%emt 0:01:07]} fxe4 {[%emt 0:02:53]} 35. Nxe4 {[%emt 0:03:32]} Nxd5 {[%emt 0:01:22]} 36. Nxc5 {[%emt 0:02:44]} dxe5 {[%emt 0:09:16]} 37. Nxb7 {[%emt 0:01:44]} Nxe3 {[%emt 0:00:09]} 38. Rxe3 {[%emt 0:00:48]} exf4 {[%emt 0:00:12]} 39. Re1 {[%emt 0:01:46]} Qxb7 {[%emt 0:03:37]} 40. Be4 {[%emt 0:00:27]} Qa7+ {[%emt 0:00:06]} 41. Kh1 {[%emt 0:30:06]} Rad8 {[%emt 0:31:04]} 42. Qf3 {[%emt 0:00:00]} Qc7 {[%emt 0:00:00]} 43. Re2 {[%emt 0:00:00]} Rf6 {[%emt 0:00:00]} 44. Bc2 {[%emt 0:00:00]} Bf8 {[%emt 0:00:00]} 45. Rf1 {[%emt 0:01:31]} Bc5 {[%emt 0:00:00]} 46. Qg4 {[%emt 0:00:44]} Rdf8 {[%emt 0:00:00]} 47. Be4 {[%emt 0:00:52]} Qxa5 {[%emt 0:00:00]} 48. Rd2 {[%emt 0:00:18]} Qb6 {[%emt 0:00:00]} 49. Rd7 {[%emt 0:00:40]} Qe6 {[%emt 0:00:00]} 50. Qxe6 {[%emt 0:00:37]} Rxe6 {[%emt 0:00:00]} 51. Bf3 {[%emt 0:00:11]} Rfe8 {[%emt 0:00:00]} 52. Kh2 {[%emt 0:00:57]} Re1 {[%emt 0:00:00]} 53. Rxe1 {[%emt 0:00:29]} Rxe1 {[%emt 0:00:00]} 54. Rd1 {[%emt 0:00:39]} Re7 {[%emt 0:00:00]} 55. g3 {[%emt 0:00:30]} fxg3+ {[%emt 0:00:00]} 56. Kxg3 {[%emt 0:00:02]} Kg7 {[%emt 0:00:28]} 57. Rd8 {[%emt 0:00:44]} Be3 {[%emt 0:00:57]} 58. Rd1 {[%emt 0:00:25]} h5 {[%emt 0:01:34]} 59. Ra1 {[%emt 0:00:17]} Ra7 {[%emt 0:01:53]} 60. Re1 {[%emt 0:00:25]} Bd2 {[%emt 0:07:03]} 61. Rd1 {[%emt 0:00:27]} Bg5 {[%emt 0:01:08]} 62. Be4 {[%emt 0:00:40]} Bf6 {[%emt 0:00:25]} 63. Kf3 {[%emt 0:00:36]} Be5 {[%emt 0:00:12]} 64. Rd5 {[%emt 0:00:45]} Re7 {[%emt 0:00:14]} 65. Rc5 {[%emt 0:00:22]} Rf7+ {[%emt 0:01:23]} 66. Kg2 {[%emt 0:00:18]} Bf6 {[%emt 0:01:58]} 67. Rc6 {[%emt 0:00:13]} Ra7 {[%emt 0:00:08]} 68. Rb6 {[%emt 0:00:15]} Kf7 {[%emt 0:00:25]} 69. Rb7+ {[%emt 0:00:47]} Rxb7 {[%emt 0:00:01]} 70. Bxb7 {[%emt 0:00:08]} a5 {[%emt 0:01:10]} 71. Ba6 {[%emt 0:00:09]} Ke6 {[%emt 0:00:29]} 72. Bxb5 {[%emt 0:00:10]} Kd5 {[%emt 0:00:01]} 73. Be8 {[%emt 0:00:26]} g5 {[%emt 0:01:09]} 74. Bxh5 {[%emt 0:00:14]} a4 {[%emt 0:00:08]} 75. Bd1 {[%emt 0:00:12]} Bxc3 {[%emt 0:00:24]} 76. Bxa4 {[%emt 0:00:09]} Bxb2 {[%emt 0:00:04]} 77. h4 {[%emt 0:00:31]} gxh4 {[%emt 0:00:15]} 78. Bc2 {[%emt 0:00:06]} Bf6 {[%emt 0:00:10]} 79. Kh1 {[%emt 0:00:06]} Ke5 {[%emt 0:00:09]} 80. Bb1 {[%emt 0:00:05]} Kf4 {[%emt 0:03:07]} 81. Bc2 {[%emt 0:00:05]} Kg3 {[%emt 0:00:00]} 82. Bb1 {[%emt 0:00:05]} Bd4 {[%emt 0:00:00]} 83. Bc2 {[%emt 0:00:06]} Kh3 {[%emt 0:00:00]} 84. Bb1 {[%emt 0:00:05]} c3 {[%emt 0:00:00]} 85. Bd3 {[%emt 0:00:04]} Kg3 {[%emt 0:00:00]} 86. Bc2 {[%emt 0:00:06]} h3 {[%emt 0:00:00]} 87. Bb1 {[%emt 0:00:08]} Be5 {[%emt 0:00:00]} 88. Bc2 {[%emt 0:00:06]} Kf2 {[%emt 0:00:00]} 89. Bb1 {[%emt 0:00:04]} Ke1 {[%emt 0:00:00]} 90. Bc2 {[%emt 0:00:05]} Kd2 {[%emt 0:00:00]} 91. Bg6 {[%emt 0:00:04]} c2 {[%emt 0:00:00]} 92. Bxc2 {[%emt 0:00:05]} Bh2 {[%emt 0:00:00]} 93. Kxh2 {[%emt 0:00:06]} Kc3 {[%emt 0:00:00]} 94. Kxh3 {[%emt 0:00:05]} 1/2-1/2